[Event "Titled Tuesday Blitz April 19 Late 2022"]
[White "Lewtak, Damian"]
[Black "Vasquez Schroeder, Rodrigo"]
[WhiteFideId "1141724"]
[BlackFideId "3400042"]
[WhiteElo "2362"]
[BlackElo "2561"]
[Result "0-1"]
[Round "03"]
[TimeControl "180+1"]
[Date "2022.04.19"]
[WhiteClock "0:00:15"]
[BlackClock "0:00:16"]

1. a3 {[%clk 0:03:00]}  d5 {[%clk 0:02:56]} 2. d4 {[%clk 0:02:59]}  Bf5 {[%clk 0:02:51]} 3. c4 {[%clk 0:02:59]}  c6 {[%clk 0:02:50]} 4. Nc3 {[%clk 0:02:59]}  e6 {[%clk 0:02:50]} 5. Qb3 {[%clk 0:02:58]}  Qb6 {[%clk 0:02:46]} 6. Qxb6 {[%clk 0:02:58]}  axb6 {[%clk 0:02:46]} 7. f3 {[%clk 0:02:55]}  Nf6 {[%clk 0:02:45]} 8. g4 {[%clk 0:02:54]}  Bg6 {[%clk 0:02:45]} 9. g5 {[%clk 0:02:55]}  Nh5 {[%clk 0:02:26]} 10. e4 {[%clk 0:02:54]}  Bb4 {[%clk 0:02:17]} 11. cxd5 {[%clk 0:02:50]}  exd5 {[%clk 0:02:16]} 12. exd5 {[%clk 0:02:50]}  cxd5 {[%clk 0:02:15]} 13. Bb5+ {[%clk 0:02:48]}  Nc6 {[%clk 0:02:15]} 14. Ne2 {[%clk 0:02:45]}  O-O {[%clk 0:02:10]} 15. Kf2 {[%clk 0:02:44]}  Ne7 {[%clk 0:01:59]} 16. Bd2 {[%clk 0:02:28]}  Bd6 {[%clk 0:01:55]} 17. Na4 {[%clk 0:02:10]}  f6 {[%clk 0:01:13]} 18. h4 {[%clk 0:01:56]}  fxg5 {[%clk 0:01:09]} 19. hxg5 {[%clk 0:01:57]}  Rad8 {[%clk 0:01:00]} 20. Nxb6 {[%clk 0:01:49]}  Nf5 {[%clk 0:00:55]} 21. Rag1 {[%clk 0:01:29]}  Bc7 {[%clk 0:00:47]} 22. Na4 {[%clk 0:01:29]}  Nd6 {[%clk 0:00:46]} 23. Bd3 {[%clk 0:01:03]}  Ne4+ {[%clk 0:00:34]} 24. Bxe4 {[%clk 0:00:49]}  dxe4 {[%clk 0:00:35]} 25. Nc5 {[%clk 0:00:40]}  Rxf3+ {[%clk 0:00:33]} 26. Ke1 {[%clk 0:00:37]}  e3 {[%clk 0:00:28]} 27. Bc3 {[%clk 0:00:36]}  Rf2 {[%clk 0:00:20]} 28. Ne6 {[%clk 0:00:34]}  Rd7 {[%clk 0:00:20]} 29. Nxc7 {[%clk 0:00:34]}  Rxc7 {[%clk 0:00:21]} 30. Rf1 {[%clk 0:00:34]}  Rcf7 {[%clk 0:00:19]} 31. Rfg1 {[%clk 0:00:24]}  Bd3 {[%clk 0:00:18]} 32. Nc1 {[%clk 0:00:23]}  Nf4 {[%clk 0:00:18]} 33. g6 {[%clk 0:00:16]}  Ng2+ {[%clk 0:00:16]} 34. Rxg2 {[%clk 0:00:15]}  Rf1+ {[%clk 0:00:16]} 0-1


[Site "https://www.chess.com"]

[Event "Titled Tuesday Blitz April 19 Late 2022"]
[White "Lin, Dachey"]
[Black "Steinberg, Nitzan"]
[WhiteFideId "2029650"]
[BlackFideId "2801795"]
[WhiteElo "2313"]
[BlackElo "2471"]
[Result "1-0"]
[Round "03"]
[TimeControl "180+1"]
[Date "2022.04.19"]
[WhiteClock "0:00:17"]
[BlackClock "0:00:01"]

1. Nc3 {[%clk 0:03:00]}  d5 {[%clk 0:02:58]} 2. e4 {[%clk 0:03:01]}  d4 {[%clk 0:02:56]} 3. Nce2 {[%clk 0:02:59]}  c5 {[%clk 0:02:56]} 4. Nf3 {[%clk 0:02:59]}  Nc6 {[%clk 0:02:55]} 5. c3 {[%clk 0:02:57]}  e5 {[%clk 0:02:53]} 6. Ng3 {[%clk 0:02:57]}  Be6 {[%clk 0:02:51]} 7. Bb5 {[%clk 0:02:57]}  Bd6 {[%clk 0:02:45]} 8. d3 {[%clk 0:02:54]}  h6 {[%clk 0:02:41]} 9. O-O {[%clk 0:02:49]}  Ne7 {[%clk 0:02:41]} 10. Nh4 {[%clk 0:02:42]}  a6 {[%clk 0:02:38]} 11. Bxc6+ {[%clk 0:02:12]}  Nxc6 {[%clk 0:02:38]} 12. Nhf5 {[%clk 0:02:13]}  Bf8 {[%clk 0:02:30]} 13. Nh5 {[%clk 0:02:13]}  Rg8 {[%clk 0:02:22]} 14. Qf3 {[%clk 0:02:04]}  Bxf5 {[%clk 0:01:38]} 15. exf5 {[%clk 0:02:04]}  Qd6 {[%clk 0:01:39]} 16. Ng3 {[%clk 0:01:54]}  O-O-O {[%clk 0:01:39]} 17. Ne4 {[%clk 0:01:55]}  Qd7 {[%clk 0:01:38]} 18. c4 {[%clk 0:01:50]}  Be7 {[%clk 0:01:35]} 19. a3 {[%clk 0:01:46]}  a5 {[%clk 0:01:35]} 20. Bd2 {[%clk 0:01:45]}  Kb8 {[%clk 0:01:31]} 21. Rfb1 {[%clk 0:01:44]}  Rc8 {[%clk 0:01:23]} 22. b4 {[%clk 0:01:25]}  cxb4 {[%clk 0:01:22]} 23. c5 {[%clk 0:01:25]}  b3 {[%clk 0:00:52]} 24. Rxb3 {[%clk 0:01:24]}  Rc7 {[%clk 0:00:52]} 25. Rab1 {[%clk 0:01:23]}  Rgc8 {[%clk 0:00:52]} 26. Rb5 {[%clk 0:01:23]}  Qd5 {[%clk 0:00:50]} 27. Qd1 {[%clk 0:01:00]}  Na7 {[%clk 0:00:44]} 28. Rxa5 {[%clk 0:00:58]}  Bxc5 {[%clk 0:00:43]} 29. Bb4 {[%clk 0:00:52]}  Ka8 {[%clk 0:00:29]} 30. Bxc5 {[%clk 0:00:43]}  Rxc5 {[%clk 0:00:29]} 31. Rxc5 {[%clk 0:00:41]}  Rxc5 {[%clk 0:00:30]} 32. Nxc5 {[%clk 0:00:42]}  Qxc5 {[%clk 0:00:31]} 33. Qb3 {[%clk 0:00:42]}  Qc7 {[%clk 0:00:31]} 34. h3 {[%clk 0:00:40]}  Nc6 {[%clk 0:00:31]} 35. Qd5 {[%clk 0:00:34]}  Kb8 {[%clk 0:00:32]} 36. a4 {[%clk 0:00:32]}  f6 {[%clk 0:00:26]} 37. Rb5 {[%clk 0:00:30]}  Qc8 {[%clk 0:00:23]} 38. g4 {[%clk 0:00:28]}  Qc7 {[%clk 0:00:21]} 39. a5 {[%clk 0:00:27]}  Na7 {[%clk 0:00:21]} 40. Rc5 {[%clk 0:00:27]}  Nc6 {[%clk 0:00:21]} 41. a6 {[%clk 0:00:27]}  Ka7 {[%clk 0:00:12]} 42. axb7 {[%clk 0:00:27]}  Kxb7 {[%clk 0:00:13]} 43. Kg2 {[%clk 0:00:26]}  Qc8 {[%clk 0:00:07]} 44. Rb5+ {[%clk 0:00:22]}  Ka6 {[%clk 0:00:02]} 45. Qc4 {[%clk 0:00:21]}  Qa8 {[%clk 0:00:01]} 46. Rb8+ {[%clk 0:00:17]}  Ka7 {[%clk 0:00:01]} 47. Rxa8+ {[%clk 0:00:17]} 1-0


[Site "https://www.chess.com"]

[Event "Titled Tuesday Blitz April 19 Late 2022"]
[White "Lopez Idarraga, Daniel Eduardo"]
[Black "Djokic, Mihailo"]
[WhiteFideId "4405501"]
[BlackFideId "976440"]
[WhiteElo "2055"]
[BlackElo "2202"]
[Result "0-1"]
[Round "03"]
[TimeControl "180+1"]
[Date "2022.04.19"]
[WhiteClock "0:00:02"]
[BlackClock "0:00:09"]

1. d4 {[%clk 0:02:59]}  Nf6 {[%clk 0:02:59]} 2. Nf3 {[%clk 0:02:57]}  g6 {[%clk 0:02:59]} 3. Nc3 {[%clk 0:02:57]}  d5 {[%clk 0:02:59]} 4. Bf4 {[%clk 0:02:56]}  Bg7 {[%clk 0:02:59]} 5. e3 {[%clk 0:02:57]}  O-O {[%clk 0:02:59]} 6. Ne5 {[%clk 0:02:57]}  c5 {[%clk 0:02:58]} 7. h4 {[%clk 0:02:54]}  h5 {[%clk 0:02:56]} 8. Qd2 {[%clk 0:02:52]}  Nc6 {[%clk 0:02:54]} 9. O-O-O {[%clk 0:02:52]}  cxd4 {[%clk 0:02:54]} 10. exd4 {[%clk 0:02:51]}  Bf5 {[%clk 0:02:51]} 11. f3 {[%clk 0:02:50]}  Rc8 {[%clk 0:02:48]} 12. Be2 {[%clk 0:02:12]}  Nb4 {[%clk 0:02:44]} 13. Nd3 {[%clk 0:02:11]}  Qa5 {[%clk 0:02:26]} 14. Kb1 {[%clk 0:02:10]}  Bxd3 {[%clk 0:02:19]} 15. Bxd3 {[%clk 0:02:11]}  Nd7 {[%clk 0:01:41]} 16. a3 {[%clk 0:02:08]}  Nxd3 {[%clk 0:01:40]} 17. Qxd3 {[%clk 0:02:09]}  Nb6 {[%clk 0:01:38]} 18. Be5 {[%clk 0:01:54]}  Bxe5 {[%clk 0:01:13]} 19. dxe5 {[%clk 0:01:53]}  e6 {[%clk 0:01:11]} 20. g4 {[%clk 0:01:30]}  Nc4 {[%clk 0:01:07]} 21. Na2 {[%clk 0:01:29]}  Qb6 {[%clk 0:01:02]} 22. Qc3 {[%clk 0:01:11]}  Ne3 {[%clk 0:01:01]} 23. Qd3 {[%clk 0:01:06]}  Nxd1 {[%clk 0:01:00]} 24. Rxd1 {[%clk 0:01:07]}  hxg4 {[%clk 0:00:43]} 25. h5 {[%clk 0:01:06]}  Kg7 {[%clk 0:00:38]} 26. hxg6 {[%clk 0:01:05]}  fxg6 {[%clk 0:00:35]} 27. fxg4 {[%clk 0:00:57]}  Rf2 {[%clk 0:00:34]} 28. Nc3 {[%clk 0:00:51]}  d4 {[%clk 0:00:17]} 29. Qxd4 {[%clk 0:00:45]}  Qxd4 {[%clk 0:00:17]} 30. Rxd4 {[%clk 0:00:46]}  Rc7 {[%clk 0:00:13]} 31. Rd6 {[%clk 0:00:45]}  Kf7 {[%clk 0:00:09]} 32. Ne4 {[%clk 0:00:45]}  Rfxc2 {[%clk 0:00:09]} 33. Ng5+ {[%clk 0:00:45]}  Ke7 {[%clk 0:00:09]} 34. Rxe6+ {[%clk 0:00:45]}  Kd7 {[%clk 0:00:08]} 35. Rxg6 {[%clk 0:00:46]}  Rc1+ {[%clk 0:00:08]} 36. Ka2 {[%clk 0:00:46]}  Rg1 {[%clk 0:00:07]} 37. Rg7+ {[%clk 0:00:38]}  Kc6 {[%clk 0:00:07]} 38. Rg6+ {[%clk 0:00:26]}  Kd5 {[%clk 0:00:07]} 39. Nf3 {[%clk 0:00:17]}  Rf1 {[%clk 0:00:05]} 40. Rd6+ {[%clk 0:00:16]}  Kc5 {[%clk 0:00:05]} 41. Rd3 {[%clk 0:00:15]}  Rf7 {[%clk 0:00:03]} 42. Rc3+ {[%clk 0:00:13]}  Kd5 {[%clk 0:00:02]} 43. Nd2 {[%clk 0:00:12]}  Rg1 {[%clk 0:00:02]} 44. Rd3+ {[%clk 0:00:09]}  Ke6 {[%clk 0:00:03]} 45. Ne4 {[%clk 0:00:07]}  Rxg4 {[%clk 0:00:02]} 46. Nc5+ {[%clk 0:00:07]}  Kxe5 {[%clk 0:00:02]} 47. Nb3 {[%clk 0:00:06]}  b6 {[%clk 0:00:02]} 48. Re3+ {[%clk 0:00:07]}  Kd5 {[%clk 0:00:02]} 49. Rd3+ {[%clk 0:00:07]}  Kc6 {[%clk 0:00:03]} 50. Rc3+ {[%clk 0:00:08]}  Kb7 {[%clk 0:00:03]} 51. Rd3 {[%clk 0:00:07]}  Rc7 {[%clk 0:00:03]} 52. Re3 {[%clk 0:00:07]}  Rd7 {[%clk 0:00:04]} 53. Rf3 {[%clk 0:00:07]}  a5 {[%clk 0:00:04]} 54. Re3 {[%clk 0:00:07]}  a4 {[%clk 0:00:05]} 55. Na1 {[%clk 0:00:07]}  Rc4 {[%clk 0:00:05]} 56. Re2 {[%clk 0:00:06]}  Rd3 {[%clk 0:00:05]} 57. Nc2 {[%clk 0:00:06]}  b5 {[%clk 0:00:04]} 58. Nb4 {[%clk 0:00:06]}  Rd6 {[%clk 0:00:04]} 59. Rf2 {[%clk 0:00:05]}  Kb6 {[%clk 0:00:04]} 60. Rg2 {[%clk 0:00:06]}  Rcd4 {[%clk 0:00:04]} 61. Rf2 {[%clk 0:00:05]}  Rg4 {[%clk 0:00:05]} 62. Rf5 {[%clk 0:00:05]}  Rc4 {[%clk 0:00:04]} 63. Nd5+ {[%clk 0:00:04]}  Kb7 {[%clk 0:00:03]} 64. Nb4 {[%clk 0:00:05]}  Kb6 {[%clk 0:00:02]} 65. Rf2 {[%clk 0:00:05]}  Ka5 {[%clk 0:00:02]} 66. Rf8 {[%clk 0:00:05]}  Kb6 {[%clk 0:00:01]} 67. Rb8+ {[%clk 0:00:05]}  Kc7 {[%clk 0:00:02]} 68. Rh8 {[%clk 0:00:06]}  Rd7 {[%clk 0:00:01]} 69. Rh6 {[%clk 0:00:05]}  Kb7 {[%clk 0:00:02]} 70. Rg6 {[%clk 0:00:05]}  Rc5 {[%clk 0:00:02]} 71. Rg2 {[%clk 0:00:04]}  Re7 {[%clk 0:00:03]} 72. Rf2 {[%clk 0:00:05]}  Re4 {[%clk 0:00:03]} 73. Rg2 {[%clk 0:00:05]}  Kc7 {[%clk 0:00:04]} 74. Rf2 {[%clk 0:00:05]}  Kd6 {[%clk 0:00:04]} 75. Rg2 {[%clk 0:00:05]}  Rc1 {[%clk 0:00:03]} 76. Rd2+ {[%clk 0:00:05]}  Ke6 {[%clk 0:00:03]} 77. Rh2 {[%clk 0:00:05]}  Ree1 {[%clk 0:00:04]} 78. b3 {[%clk 0:00:03]}  Ra1+ {[%clk 0:00:04]} 79. Kb2 {[%clk 0:00:03]}  Reb1+ {[%clk 0:00:05]} 80. Kc2 {[%clk 0:00:04]}  Rxb3 {[%clk 0:00:05]} 81. Re2+ {[%clk 0:00:03]}  Kd6 {[%clk 0:00:06]} 82. Rd2+ {[%clk 0:00:03]}  Kc7 {[%clk 0:00:06]} 83. Nd5+ {[%clk 0:00:02]}  Kb7 {[%clk 0:00:07]} 84. Nc3 {[%clk 0:00:03]}  Raxa3 {[%clk 0:00:05]} 85. Rd5 {[%clk 0:00:02]}  Rxc3+ {[%clk 0:00:06]} 86. Kb2 {[%clk 0:00:02]}  Rab3+ {[%clk 0:00:06]} 87. Ka2 {[%clk 0:00:03]}  Ra3+ {[%clk 0:00:06]} 88. Kb2 {[%clk 0:00:01]}  Rcb3+ {[%clk 0:00:07]} 89. Kc2 {[%clk 0:00:01]}  Kb6 {[%clk 0:00:07]} 90. Rd6+ {[%clk 0:00:01]}  Ka5 {[%clk 0:00:08]} 91. Rh6 {[%clk 0:00:02]}  Ra2+ {[%clk 0:00:08]} 92. Kc1 {[%clk 0:00:02]}  Rg2 {[%clk 0:00:09]} 93. Rh1 {[%clk 0:00:01]}  Ra3 {[%clk 0:00:09]} 94. Rf1 {[%clk 0:00:02]}  Ra1# {[%clk 0:00:09]} 0-1


[Site "https://www.chess.com"]

[Event "Titled Tuesday Blitz April 19 Late 2022"]
[White "Mangialardo, Tiago Carvalho"]
[Black "Rengifo Blancas, Renzo Jhonathan"]
[WhiteFideId "2130718"]
[BlackFideId "3807185"]
[WhiteElo "2053"]
[BlackElo "2058"]
[Result "0-1"]
[Round "03"]
[TimeControl "180+1"]
[Date "2022.04.19"]
[WhiteClock "0:00:07"]
[BlackClock "0:01:53"]

1. e4 {[%clk 0:03:00]}  e5 {[%clk 0:03:00]} 2. Nf3 {[%clk 0:02:58]}  Nc6 {[%clk 0:02:59]} 3. d3 {[%clk 0:02:55]}  Nf6 {[%clk 0:02:56]} 4. Be2 {[%clk 0:02:55]}  d5 {[%clk 0:02:48]} 5. exd5 {[%clk 0:02:48]}  Nxd5 {[%clk 0:02:49]} 6. O-O {[%clk 0:02:47]}  Be7 {[%clk 0:02:49]} 7. Re1 {[%clk 0:02:46]}  O-O {[%clk 0:02:50]} 8. Nc3 {[%clk 0:02:37]}  Nxc3 {[%clk 0:02:49]} 9. bxc3 {[%clk 0:02:38]}  Re8 {[%clk 0:02:49]} 10. d4 {[%clk 0:02:32]}  exd4 {[%clk 0:02:49]} 11. cxd4 {[%clk 0:02:32]}  Bf6 {[%clk 0:02:50]} 12. c3 {[%clk 0:02:31]}  Bg4 {[%clk 0:02:51]} 13. Be3 {[%clk 0:02:29]}  h6 {[%clk 0:02:50]} 14. h3 {[%clk 0:02:27]}  Bf5 {[%clk 0:02:49]} 15. Bd3 {[%clk 0:02:24]}  Bxd3 {[%clk 0:02:49]} 16. Qxd3 {[%clk 0:02:25]}  Qd5 {[%clk 0:02:49]} 17. a3 {[%clk 0:01:58]}  Na5 {[%clk 0:02:48]} 18. Rab1 {[%clk 0:01:55]}  c6 {[%clk 0:02:48]} 19. Nd2 {[%clk 0:01:47]}  b5 {[%clk 0:02:47]} 20. Rec1 {[%clk 0:01:09]}  Nc4 {[%clk 0:02:03]} 21. Nxc4 {[%clk 0:01:01]}  bxc4 {[%clk 0:02:04]} 22. Qd2 {[%clk 0:00:54]}  Bg5 {[%clk 0:02:04]} 23. Bxg5 {[%clk 0:00:50]}  hxg5 {[%clk 0:02:05]} 24. Re1 {[%clk 0:00:41]}  Qf5 {[%clk 0:02:05]} 25. Qa2 {[%clk 0:00:36]}  Qd3 {[%clk 0:02:04]} 26. Qb2 {[%clk 0:00:23]}  Kh7 {[%clk 0:01:56]} 27. Rbd1 {[%clk 0:00:21]}  Rab8 {[%clk 0:01:53]} 28. Rxd3 {[%clk 0:00:07]}  Rxe1+ {[%clk 0:01:52]} 29. Kh2 {[%clk 0:00:07]}  Rxb2 {[%clk 0:01:53]} 0-1


[Site "https://www.chess.com"]

[Event "Titled Tuesday Blitz April 19 Late 2022"]
[White "Martinez Alcantara, Jose Eduardo"]
[Black "Gledura, Benjamin"]
[WhiteFideId "3805662"]
[BlackFideId "712779"]
[WhiteElo "2690"]
[BlackElo "2326"]
[Result "1-0"]
[Round "03"]
[TimeControl "180+1"]
[Date "2022.04.19"]
[WhiteClock "0:00:10"]
[BlackClock "0:00:11"]

1. e4 {[%clk 0:02:55]}  Nf6 {[%clk 0:02:59]} 2. e5 {[%clk 0:02:55]}  Nd5 {[%clk 0:02:59]} 3. d4 {[%clk 0:02:56]}  d6 {[%clk 0:02:59]} 4. Nf3 {[%clk 0:02:56]}  dxe5 {[%clk 0:02:58]} 5. Nxe5 {[%clk 0:02:57]}  g6 {[%clk 0:02:58]} 6. Be2 {[%clk 0:02:56]}  Bg7 {[%clk 0:02:58]} 7. O-O {[%clk 0:02:56]}  O-O {[%clk 0:02:58]} 8. c4 {[%clk 0:02:55]}  Nb6 {[%clk 0:02:56]} 9. Be3 {[%clk 0:02:49]}  c5 {[%clk 0:02:50]} 10. Nc3 {[%clk 0:02:42]}  cxd4 {[%clk 0:02:46]} 11. Bxd4 {[%clk 0:02:43]}  N6d7 {[%clk 0:02:18]} 12. Nxd7 {[%clk 0:02:30]}  Nxd7 {[%clk 0:02:17]} 13. Bxg7 {[%clk 0:02:27]}  Kxg7 {[%clk 0:02:18]} 14. Qd4+ {[%clk 0:02:23]}  Nf6 {[%clk 0:02:18]} 15. Qe3 {[%clk 0:02:18]}  Be6 {[%clk 0:02:16]} 16. b3 {[%clk 0:02:15]}  Qa5 {[%clk 0:02:14]} 17. Nb5 {[%clk 0:02:09]}  Bd7 {[%clk 0:02:06]} 18. Rfd1 {[%clk 0:01:51]}  Bxb5 {[%clk 0:02:05]} 19. cxb5 {[%clk 0:01:52]}  Qa3 {[%clk 0:01:54]} 20. Bf3 {[%clk 0:01:45]}  Rab8 {[%clk 0:01:54]} 21. Qe5 {[%clk 0:01:35]}  Rfd8 {[%clk 0:01:49]} 22. g3 {[%clk 0:01:10]}  b6 {[%clk 0:01:45]} 23. Kg2 {[%clk 0:00:52]}  h5 {[%clk 0:01:39]} 24. h3 {[%clk 0:00:52]}  Rbc8 {[%clk 0:01:06]} 25. Bc6 {[%clk 0:00:50]}  Qb4 {[%clk 0:01:04]} 26. Qe3 {[%clk 0:00:37]}  Qa3 {[%clk 0:00:37]} 27. Qe5 {[%clk 0:00:31]}  Qb4 {[%clk 0:00:37]} 28. Qe3 {[%clk 0:00:30]}  Qa3 {[%clk 0:00:37]} 29. Rd2 {[%clk 0:00:26]}  Rxd2 {[%clk 0:00:30]} 30. Qxd2 {[%clk 0:00:27]}  Qc5 {[%clk 0:00:25]} 31. Rc1 {[%clk 0:00:23]}  Qf5 {[%clk 0:00:25]} 32. Rc4 {[%clk 0:00:21]}  g5 {[%clk 0:00:18]} 33. a4 {[%clk 0:00:20]}  g4 {[%clk 0:00:16]} 34. h4 {[%clk 0:00:20]}  e6 {[%clk 0:00:16]} 35. Rd4 {[%clk 0:00:16]}  Rc7 {[%clk 0:00:15]} 36. b4 {[%clk 0:00:15]}  e5 {[%clk 0:00:16]} 37. Rd6 {[%clk 0:00:11]}  Ne4 {[%clk 0:00:11]} 38. Qh6+ {[%clk 0:00:10]} 1-0


[Site "https://www.chess.com"]

[Event "Titled Tuesday Blitz April 19 Late 2022"]
[White "Miszler, Levente"]
[Black "Ricaurte Lopez, Juan Carlos"]
[WhiteFideId "763276"]
[BlackFideId "3600327"]
[WhiteElo "1966"]
[BlackElo "2209"]
[Result "0-1"]
[Round "03"]
[TimeControl "180+1"]
[Date "2022.04.19"]
[WhiteClock "0:00:03"]
[BlackClock "0:00:38"]

1. Nf3 {[%clk 0:03:00]}  d5 {[%clk 0:02:58]} 2. d3 {[%clk 0:02:55]}  c5 {[%clk 0:02:58]} 3. Nbd2 {[%clk 0:02:52]}  Nc6 {[%clk 0:02:58]} 4. e4 {[%clk 0:02:52]}  Nf6 {[%clk 0:02:54]} 5. g3 {[%clk 0:02:47]}  Bg4 {[%clk 0:02:50]} 6. Bg2 {[%clk 0:02:47]}  e6 {[%clk 0:02:49]} 7. h3 {[%clk 0:02:46]}  Bh5 {[%clk 0:02:48]} 8. g4 {[%clk 0:02:46]}  Bg6 {[%clk 0:02:48]} 9. Nh4 {[%clk 0:02:46]}  Be7 {[%clk 0:02:38]} 10. Nxg6 {[%clk 0:02:02]}  hxg6 {[%clk 0:02:39]} 11. O-O {[%clk 0:01:55]}  Qc7 {[%clk 0:02:29]} 12. c3 {[%clk 0:01:46]}  O-O-O {[%clk 0:02:27]} 13. Qe2 {[%clk 0:01:33]}  dxe4 {[%clk 0:02:18]} 14. dxe4 {[%clk 0:01:34]}  Bd6 {[%clk 0:02:13]} 15. Re1 {[%clk 0:01:28]}  Bf4 {[%clk 0:02:12]} 16. Nf3 {[%clk 0:01:25]}  Bxc1 {[%clk 0:02:10]} 17. Raxc1 {[%clk 0:01:26]}  Qf4 {[%clk 0:02:07]} 18. Qe3 {[%clk 0:01:21]}  Qxe3 {[%clk 0:02:06]} 19. Rxe3 {[%clk 0:01:22]}  Rd7 {[%clk 0:02:01]} 20. Re2 {[%clk 0:01:12]}  Rhd8 {[%clk 0:01:59]} 21. Kf1 {[%clk 0:01:11]}  c4 {[%clk 0:01:51]} 22. Ke1 {[%clk 0:01:06]}  b5 {[%clk 0:01:48]} 23. e5 {[%clk 0:00:58]}  Nd5 {[%clk 0:01:43]} 24. Rd1 {[%clk 0:00:54]}  Nf4 {[%clk 0:01:42]} 25. Rxd7 {[%clk 0:00:52]}  Rxd7 {[%clk 0:01:42]} 26. Nh4 {[%clk 0:00:41]}  Nxe2 {[%clk 0:01:35]} 27. Bxc6 {[%clk 0:00:41]}  Rd3 {[%clk 0:01:29]} 28. Kxe2 {[%clk 0:00:38]}  Rxh3 {[%clk 0:01:28]} 29. Nf3 {[%clk 0:00:35]}  f6 {[%clk 0:01:27]} 30. Bxb5 {[%clk 0:00:34]}  Kc7 {[%clk 0:01:20]} 31. Bxc4 {[%clk 0:00:34]}  Kd7 {[%clk 0:01:19]} 32. b4 {[%clk 0:00:32]}  Rh1 {[%clk 0:01:16]} 33. a4 {[%clk 0:00:23]}  g5 {[%clk 0:01:14]} 34. exf6 {[%clk 0:00:21]}  gxf6 {[%clk 0:01:13]} 35. Nd4 {[%clk 0:00:21]}  e5 {[%clk 0:01:12]} 36. Nf5 {[%clk 0:00:20]}  Rc1 {[%clk 0:01:10]} 37. Kd2 {[%clk 0:00:18]}  Ra1 {[%clk 0:01:09]} 38. Ne3 {[%clk 0:00:19]}  Kd6 {[%clk 0:01:07]} 39. a5 {[%clk 0:00:18]}  e4 {[%clk 0:01:01]} 40. Bd5 {[%clk 0:00:16]}  Ke5 {[%clk 0:00:59]} 41. b5 {[%clk 0:00:12]}  Rb1 {[%clk 0:00:58]} 42. Bc6 {[%clk 0:00:11]}  Kd6 {[%clk 0:00:55]} 43. c4 {[%clk 0:00:07]}  Rb2+ {[%clk 0:00:52]} 44. Kc3 {[%clk 0:00:07]}  Rxf2 {[%clk 0:00:52]} 45. Bxe4 {[%clk 0:00:07]}  Rf4 {[%clk 0:00:50]} 46. Kd3 {[%clk 0:00:06]}  Kc5 {[%clk 0:00:49]} 47. Nd5 {[%clk 0:00:03]}  Rxg4 {[%clk 0:00:48]} 48. Nxf6 {[%clk 0:00:03]}  Rg3+ {[%clk 0:00:47]} 49. Ke2 {[%clk 0:00:03]}  Kxc4 {[%clk 0:00:46]} 50. b6 {[%clk 0:00:03]}  axb6 {[%clk 0:00:44]} 51. axb6 {[%clk 0:00:04]}  Rh3 {[%clk 0:00:40]} 52. b7 {[%clk 0:00:03]}  Rh2+ {[%clk 0:00:38]} 53. Kf3 {[%clk 0:00:03]}  Rb2 {[%clk 0:00:38]} 0-1


[Site "https://www.chess.com"]

[Event "Titled Tuesday Blitz April 19 Late 2022"]
[White "Mitra, Roman C"]
[Black "Potapova, Margarita"]
[WhiteFideId "419540"]
[BlackFideId "14126869"]
[WhiteElo "2174"]
[BlackElo "2216"]
[Result "1-0"]
[Round "03"]
[TimeControl "180+1"]
[Date "2022.04.19"]
[WhiteClock "0:01:14"]
[BlackClock "0:00:10"]

1. c4 {[%clk 0:02:55]}  Nf6 {[%clk 0:02:34]} 2. g3 {[%clk 0:02:53]}  e6 {[%clk 0:02:28]} 3. Bg2 {[%clk 0:02:53]}  d5 {[%clk 0:02:29]} 4. cxd5 {[%clk 0:02:53]}  exd5 {[%clk 0:02:29]} 5. Qc2 {[%clk 0:02:53]}  Bd6 {[%clk 0:02:23]} 6. Nf3 {[%clk 0:02:53]}  O-O {[%clk 0:02:23]} 7. O-O {[%clk 0:02:53]}  Re8 {[%clk 0:02:20]} 8. Re1 {[%clk 0:02:51]}  c5 {[%clk 0:02:17]} 9. d4 {[%clk 0:02:46]}  c4 {[%clk 0:02:12]} 10. b3 {[%clk 0:02:45]}  cxb3 {[%clk 0:01:44]} 11. Qxb3 {[%clk 0:02:46]}  Nc6 {[%clk 0:01:43]} 12. Nc3 {[%clk 0:02:39]}  Bg4 {[%clk 0:01:42]} 13. e3 {[%clk 0:02:36]}  Bxf3 {[%clk 0:01:42]} 14. Bxf3 {[%clk 0:02:35]}  Nxd4 {[%clk 0:01:43]} 15. Qd1 {[%clk 0:02:32]}  Nxf3+ {[%clk 0:01:43]} 16. Qxf3 {[%clk 0:02:33]}  Be5 {[%clk 0:01:44]} 17. Bb2 {[%clk 0:02:32]}  Ne4 {[%clk 0:01:43]} 18. Rac1 {[%clk 0:02:25]}  Qa5 {[%clk 0:01:32]} 19. Nxe4 {[%clk 0:02:14]}  Bxb2 {[%clk 0:01:32]} 20. Ng5 {[%clk 0:02:14]}  Bxc1 {[%clk 0:01:23]} 21. Qxf7+ {[%clk 0:02:13]}  Kh8 {[%clk 0:01:23]} 22. Rxc1 {[%clk 0:02:13]}  Qb6 {[%clk 0:00:48]} 23. Rc7 {[%clk 0:02:09]}  Qg6 {[%clk 0:00:47]} 24. Qxd5 {[%clk 0:01:55]}  h6 {[%clk 0:00:37]} 25. Nf7+ {[%clk 0:01:51]}  Kh7 {[%clk 0:00:38]} 26. Ne5 {[%clk 0:01:46]}  Qb1+ {[%clk 0:00:37]} 27. Kg2 {[%clk 0:01:41]}  Rad8 {[%clk 0:00:38]} 28. Qf7 {[%clk 0:01:34]}  Qe4+ {[%clk 0:00:29]} 29. Nf3 {[%clk 0:01:28]}  Rg8 {[%clk 0:00:27]} 30. Re7 {[%clk 0:01:25]}  Qc6 {[%clk 0:00:22]} 31. Re6 {[%clk 0:01:19]}  Qd5 {[%clk 0:00:18]} 32. Qg6+ {[%clk 0:01:17]}  Kh8 {[%clk 0:00:18]} 33. e4 {[%clk 0:01:17]}  Qxa2 {[%clk 0:00:10]} 34. Ng5 {[%clk 0:01:14]} 1-0


[Site "https://www.chess.com"]